Cogmind - Beta 13 @@@ ROGUE MODE // 2024.04.06 @ 21:59:54 Player: GwenMeow Result: Destroyed by P-60 Hacker with Shock Rifle Performance ------------- Evolutions (1) 500 Regions Visited (4) 800 Robots Destroyed (78) 390 Value Destroyed (1793) 1793 Prototype IDs (3) 60 Alien Tech Used (0) 0 Bonus (153) 153 TOTAL SCORE: 3696 Bonus ------- Follower Combat Kills 285 Friendly Fire -132 Cogmind --------- Core Integrity 0/400 Matter 264/300 Energy 265/265 System Corruption 4% Temperature Cool (0) Movement Walking (190) Ox1 Location -9/Recycling Parts ------- > --- POWER (1) -------- Improved Ion Engine > --- PROPULSION (3) --- Aluminum Leg > --- UTILITY (3) ------ Medium Storage Unit Signal Interpreter Improved Targeting Computer > --- WEAPON (2) ------- (None) > --- INVENTORY (10) --- Weight Redist. System Sensor Array Terrain Scanner Hardened Light Armor Plating Flak Cannon Mini Grenade Launcher Plasma Cutter Peak State ------------ > --- POWER ------------ Improved Ion Engine > --- PROPULSION ------- Aluminum Leg Aluminum Leg Improved Aluminum Leg > --- UTILITY ---------- Cooling System Small Storage Unit Signal Interpreter > --- WEAPON ----------- Flak Cannon Flak Cannon > --- INVENTORY -------- Trap Scanner Signal Interpreter Improved Targeting Computer ECM Suite Medium Armor Plating Grenade Launcher Grenade Launcher [Rating: 17] Favorites ----------- Power Improved Ion Engine Engine Improved Ion Engine Propulsion Aluminum Leg Treads Light Treads Leg Aluminum Leg Utility Signal Interpreter Device Terrain Scanner Storage Medium Storage Unit Processor Signal Interpreter Weapon Flak Cannon Energy Gun Spread Laser Ballistic Gun Assault Rifle Ballistic Cannon Flak Cannon Launcher Rocket Launcher Special Weapon Plasma Cutter Build | -11 -10 -9 -9 -9 ------- Run | Yrd Mat Mat Sto Rec Slots Evolved 2 | . . 2 . . Power . | . . . . . Propulsion 1 | . . 1 . . Utility 1 | . . 1 . . Weapon . | . . . . . Parts Attached 74 | 8 20 23 20 3 Power 10 | 1 5 3 1 . Engine 10 | 1 5 3 1 . Core . | . . . . . Reactor . | . . . . . Propulsion 18 | 2 3 5 7 1 Treads 3 | 2 1 . . . Leg 15 | . 2 5 7 1 Wheel . | . . . . . Hover . | . . . . . Flight . | . . . . . Utility 14 | 1 3 6 4 . Device 4 | . . 3 1 . Storage 3 | 1 1 1 . . Processor 7 | . 2 2 3 . Hackware . | . . . . . Protection . | . . . . . Artifact . | . . . . . Weapon 32 | 4 9 9 8 2 Energy Gun 5 | 3 . 2 . . Energy Cannon . | . . . . . Ballistic Gun 5 | 1 1 2 . 1 Ballistic Cannon 12 | . 4 4 3 1 Launcher 9 | . 4 1 4 . Special Weapon 1 | . . . 1 . Impact Weapon . | . . . . . Slashing Weapon . | . . . . . Piercing Weapon . | . . . . . Special Melee Weapon . | . . . . . Unidentified Prototypes . | . . . . . Parts Lost 3 | . . . . 3 Power . | . . . . . Propulsion 1 | . . . . 1 Utility . | . . . . . Weapon 2 | . . . . 2 Highest Loss Streak 3 | . . . . 3 To Critical Strikes . | . . . . . Average Slot Usage (%) 97 | . 98 94 99 98 Engine 11 | . 13 11 11 11 Treads 4 | . 20 . . . Leg 25 | . 7 29 32 32 Device 2 | . . 4 2 . Storage 14 | . 24 11 11 11 Processor 14 | . 2 15 19 22 Energy Gun 3 | . 5 8 . . Ballistic Gun 1 | . 2 2 . 7 Ballistic Cannon 9 | . 12 10 7 3 Launcher 6 | . 7 . 8 10 Special Weapon 2 | . . . 5 . Naked Turns . | . . . . . Heaviest Build 29 | 12 18 29 29 27 Greatest Support 40 | 40 40 33 33 33 Greatest Overweight (x) 1 | . . . . 1 Average Overweight (x) . | . . . . . Largest Inventory Capacity 10 | 8 8 10 10 10 Average Capacity 9 | 7 8 8 10 10 Most Carried 10 | 3 8 9 10 8 Average Carried 6 | 1 4 6 8 7 Final Capacity 10 | 8 8 10 10 10 Final Carried 8 | 3 5 8 7 7 Class Distribution -------------------- 90% | Mutant 7% | Commander-Mutant Dominant Class ---------------- Mutant | -10/Materials Mutant | -9/Materials Mutant | -9/Storage Mutant | -9/Recycling Resources | -11 -10 -9 -9 -9 ----------- Run | Yrd Mat Mat Sto Rec Matter Collected 1894 | 274 339 482 721 78 Remotely . | . . . . . Salvage Created 1606 | . 424 575 430 177 Parts 141 | . 51 44 30 16 Haulers Intercepted 1 | . . 1 . . Recyclers Shooed 4 | . 1 . 2 1 Parts Field Recycled . | . . . . . Retrieved Matter . | . . . . . Parts Self-Destructed . | . . . . . Prevented . | . . . . . Kills | -11 -10 -9 -9 -9 ------- Run | Yrd Mat Mat Sto Rec Combat Hostiles Destroyed 62 | . 19 24 14 5 Guns 19 | . 7 11 . 1 Cannons 27 | . 6 10 10 1 AOE 16 | . 6 3 4 3 Classes Destroyed 10 | . 4 4 . 2 Worker 5 | . . 2 3 . Builder 3 | . 1 . . 2 Hauler 1 | . . 1 . . Recycler 3 | . . 1 2 . Watcher 4 | . 2 1 1 . Swarmer 27 | . 9 14 3 1 Grunt 24 | . 10 6 8 . Protector 1 | . . . . 1 Sentry 9 | . . 4 3 2 Programmer 1 | . . . . 1 Best Kill Streak 9 | . 4 9 6 5 Combat Bots Only 5 | . 4 4 5 3 Max Kills in Single Turn 4 | . 2 4 2 3 Gunslinging 1 | . . 1 . . Exploded 3 | . 1 3 1 2 Melee . | . . . . . Uniques/NPCs Destroyed . | . . . . . Combat | -11 -10 -9 -9 -9 -------- Run | Yrd Mat Mat Sto Rec Hostile Shots Fired 223 | . 51 85 50 37 Missed 76 | . 23 27 16 10 Damage Taken 2087 | . 317 746 514 510 Core 468 | . 60 180 38 190 Absorbed by Shields . | . . . . . Regen/Repaired (Parts) 368 | . . 56 312 . Core Remaining (%) 88 | 100 76 . . . Volleys Fired 138 | . 35 46 48 9 Largest 2 | . 2 2 2 2 Hottest 130 | . 70 130 88 77 Shots Fired 239 | . 64 86 74 15 Gun 87 | . 26 54 . 7 Cannon 108 | . 25 29 52 2 Launcher 43 | . 13 3 21 6 Special 1 | . . . 1 . Kinetic 135 | . 41 33 52 9 Thermal 51 | . . 50 1 . Explosive 43 | . 13 3 21 6 Electromagnetic 10 | . 10 . . . Robot Hit Streak 15 | . 7 15 11 5 Robot Miss Streak 8 | . 5 8 7 3 Penetration Max . | . . . . . Secondary Targets 2 | . . 2 . . Max Gunslinging Chain 1 | . . 1 . . Shots Hit Robots 157 | . 32 74 47 4 Core Hits 198 | . 33 86 53 26 Critical Kills . | . . . . . Critical Parts Destroyed . | . . . . . Critical Strikes 1 | . 1 . . . Blast 1 | . 1 . . . Melee Attacks . | . . . . . Impact . | . . . . . Slashing . | . . . . . Piercing . | . . . . . Sneak Attacks . | . . . . . Combat Hostiles . | . . . . . Follow-up Attacks . | . . . . . Damage Inflicted 4436 | . 830 1589 1446 571 Guns 974 | . 182 728 . 64 Cannons 1288 | . 199 357 694 38 Explosions 2095 | . 448 504 674 469 Melee . | . . . . . Ramming 79 | . 1 . 78 . Kinetic 1522 | . 330 396 694 102 Thermal 689 | . . 689 . . Explosive 2095 | . 448 504 674 469 Electromagnetic 51 | . 51 . . . Impact . | . . . . . Slashing . | . . . . . Piercing . | . . . . . Highest Corruption 4 | . . . . 4 Average Corruption 2 | . . . . 2 Corruption Purged . | . . . . . Corruption Blocked . | . . . . . Effects 1 | . . . . 1 Message Errors 1 | . . . . 1 Overload Shots . | . . . . . Overflow Damage 212 | . 3 189 . 20 Projectiles 3 | . 3 . . . Explosions 209 | . . 189 . 20 Melee . | . . . . . Knockbacks 30 | . 2 5 23 . Impact . | . . . . . Kinetic 27 | . 2 5 20 . Secondary 3 | . . . 3 . Self-Inflicted Damage 337 | . 92 126 56 63 Shots 11 | . 5 2 2 2 Rammed 1 | . 1 . . . Targets Rammed 15 | . 1 . 14 . Kicked 14 | . . . 14 . Crushed . | . . . . . Highest Temperature 366 | . 33 366 183 18 Average Temperature 56 | . 11 75 54 10 Received Heat Transfer 351 | . 30 174 147 . Siege Activations . | . . . . . Robots Corrupted . | . . . . . Combat Hostiles . | . . . . . Parts Fried . | . . . . . Impact Corruptions . | . . . . . Robots Melted . | . . . . . Combat Hostiles . | . . . . . Parts Melted . | . . . . . Heat Transferred 840 | . . 840 . . Parts Sabotaged . | . . . . . Parts Stolen . | . . . . . Parts Stripped . | . . . . . Power Chain Reactions . | . . . . . Alert | -11 -10 -9 -9 -9 ------- Run | Yrd Mat Mat Sto Rec Peak Influence 357 | . 357 357 346 142 Initial 107 | . . 69 107 . Average 166 | . 164 236 147 40 Maximum Alert Level 1 | . 1 1 1 . Low Security (%) 61 | 100 61 20 78 100 Level 1 38 | . 38 79 21 . Level 2 . | . . . . . Level 3 . | . . . . . Level 4 . | . . . . . Level 5 . | . . . . . High Security . | . . . . . Max Security . | . . . . . Squads Dispatched 13 | . 5 . 8 . Investigation 11 | . 5 . 6 . Extermination . | . . . . . Reinforcement 2 | . . . 2 . Assault . | . . . . . Garrison . | . . . . . Intercept . | . . . . . Searches Triggered . | . . . . . Construction Impeded 1 | . . . 1 . Haulers Reinforced . | . . . . . Active Scanning Responses . | . . . . . Cargo Convoy Interrupts . | . . . . . Stealth | -11 -10 -9 -9 -9 --------- Run | Yrd Mat Mat Sto Rec Distress Signals 5 | . 2 3 . . Communications Jammed . | . . . . . Distress Signals . | . . . . . Times Spotted 91 | . 27 36 20 8 Peak Tracking Total 7 | . 4 5 6 7 Tactical Retreats 4 | . 2 2 . . Traps | -11 -10 -9 -9 -9 ------- Run | Yrd Mat Mat Sto Rec Traps Triggered 8 | . 4 1 3 . Indirectly . | . . . . . Trap Hack Attempts . | . . . . . Triggered . | . . . . . Disarmed . | . . . . . Reprogrammed 6 | . . . 6 . Reused 4 | . . . 4 . Traps Extracted . | . . . . . Installed . | . . . . . Triggered 4 | . . . 4 . Machines | -11 -10 -9 -9 -9 ---------- Run | Yrd Mat Mat Sto Rec Machines Disabled 10 | . 3 2 5 . Max in Single Turn 1 | . 1 1 1 . Machines Repaired . | . . . . . Machines Dismantled 2 | . . . 2 . Machines Sabotaged . | . . . . . Overloaded Fab Kills . | . . . . . Hacking | -11 -10 -9 -9 -9 --------- Run | Yrd Mat Mat Sto Rec Machines Accessed 37 | . 10 9 14 4 Terminals 21 | . 8 4 9 . Fabricators . | . . . . . Repair Stations 3 | . . 1 2 . Recycling Units 10 | . 2 2 2 4 Scanalyzers 2 | . . 2 . . Garrison Access 1 | . . . 1 . Total Hacks 125 | . 30 36 53 6 Successful 79 | . 16 26 33 4 Failed 46 | . 14 10 20 2 Catastrophic 10 | . . 2 7 1 Database Lockouts . | . . . . . Manual 16 | . . 6 10 . Terminals 68 | . 21 12 35 . Fabricators . | . . . . . Repair Stations 16 | . . 4 12 . Recycling Units 22 | . 9 5 2 6 Scanalyzers 15 | . . 15 . . Garrison Access 4 | . . . 4 . Terminal Hacks 37 | . 10 6 21 . Record 4 | . 1 . 3 . Robot Analysis 1 | . . . 1 . Prototype ID Bank 1 | . . 1 . . Open Door 1 | . . . 1 . Emergency Access Points 1 | . . . 1 . Fabricator Index 1 | . . . 1 . Alert Level 10 | . . 2 8 . Unreport Threat 5 | . 1 1 3 . Locate Traps 5 | . 2 1 2 . Reprogram Traps 1 | . . . 1 . Dispatch Records 1 | . 1 . . . Maintenance Status 1 | . 1 . . . Transport Status 1 | . 1 . . . Investigation Status 1 | . . 1 . . Hauler Manifests 1 | . 1 . . . Zone Layout 2 | . 2 . . . Fabricator Hacks . | . . . . . Repair Station Hacks 13 | . . 3 10 . Scan Component 7 | . . 2 5 . Repair 6 | . . 1 5 . Recycling Unit Hacks 17 | . 6 5 2 4 Recycle Component 2 | . 1 1 . . Process 3 | . 2 1 . . Report Inventory 10 | . 2 2 2 4 Retrieve Matter 2 | . 1 1 . . Scanalyzer 12 | . . 12 . . Insert Component 6 | . . 6 . . Analyze 6 | . . 6 . . Garrison Access Hacks . | . . . . . Unauthorized Hacks . | . . . . . Terminals . | . . . . . Fabricators . | . . . . . Repair Stations . | . . . . . Recycling Units . | . . . . . Scanalyzers . | . . . . . Garrison Access . | . . . . . Data Cores Recovered . | . . . . . Used . | . . . . . Hacking Detections 25 | . 7 5 12 1 Full Trace Events 15 | . 4 2 8 1 Feedback Events . | . . . . . Feedback Blocked . | . . . . . Robot Schematics Acquired . | . . . . . Robots Built . | . . . . . Authchips . | . . . . . Time . | . . . . . Total Robot Build Rating . | . . . . . Part Schematics Acquired 5 | . . 5 . . Parts Built . | . . . . . Authchips . | . . . . . Time . | . . . . . Total Part Build Rating . | . . . . . Parts Repaired 6 | . . 1 5 . Time 180 | . . 26 154 . Parts Recycled 2 | . 1 1 . . Recycled Matter 158 | . 130 28 . . Retrieved Matter 211 | . 183 28 . . Retrieved Components . | . . . . . Parts Scanalyzed 6 | . . 6 . . Part Schematics Acquired 5 | . . 5 . . Parts Damaged 1 | . . 1 . . Bothacking | -11 -10 -9 -9 -9 ------------ Run | Yrd Mat Mat Sto Rec Used RIF Installer . | . . . . . Robots Hacked . | . . . . . Non-combat . | . . . . . Combat . | . . . . . Robot Hacks Applied . | . . . . . Relay Couplers Released . | . . . . . Fabnet Peak Effective % . | . . . . . Robots Rewired . | . . . . . Allies Hacked . | . . . . . Hacks Repelled . | . . . . . Allies | -11 -10 -9 -9 -9 -------- Run | Yrd Mat Mat Sto Rec Total Allies 11 | . . . 11 . Largest Group 11 | . . . 11 2 Highest-Rated Group 188 | . . . 188 108 Highest-Rated Ally 100 | . . . 100 100 Total Orders . | . . . . . Ally Attacks 51 | . . . 48 3 Total Damage 559 | . . . 528 31 Kills 12 | . . . 12 . Allies Corrupted . | . . . . . Allies Melted . | . . . . . Intel | -11 -10 -9 -9 -9 ------- Run | Yrd Mat Mat Sto Rec Robot Analysis Total 1 | . . . 1 . Derelict Logs Recovered . | . . . . . Drone Launches . | . . . . . Drone Recoveries . | . . . . . Exploration | -11 -10 -9 -9 -9 ------------- Run | Yrd Mat Mat Sto Rec Turns Passed 6271 | 89 1547 1507 2873 255 Spaces Moved 3833 | 51 949 989 1661 183 Core 9 | 9 . . . . Treads 646 | 42 604 . . . Legs 3178 | . 345 989 1661 183 Wheels . | . . . . . Hover . | . . . . . Flight . | . . . . . Fastest Speed 50 | 50 120 120 120 120 Average Speed 126 | 140 145 120 120 120 Slowest Speed 190 | 160 160 120 120 190 Overloaded Moves . | . . . . . Propulsion Burnouts . | . . . . . Robots Hopped . | . . . . . Cave-ins Triggered . | . . . . . Exploration Rate (%) 60 | 3 96 80 96 28 Regions Visited 4 Branch Regions 2 Pre-discovered Areas . | . . . . . Known Exits Taken 3 | . 1 1 1 . Unknown Exits Taken 1 | 1 . . . . Scrap Searched . | . . . . . Spaces Dug 25 | . . . 9 16 Terrain Destroyed 249 | . 80 26 99 44 Melee . | . . . . . Projectile . | . . . . . AOE 249 | . 80 26 99 44 Terrain Rammed . | . . . . . Walls Destroyed . | . . . . . Machines Disabled . | . . . . . Actions | -11 -10 -9 -9 -9 --------- Run | Yrd Mat Mat Sto Rec Total 4977 | 67 1050 1227 2431 202 Wait 767 | . 13 112 642 . Move 3829 | 50 948 988 1660 183 Hop . | . . . . . Pick Up 84 | 9 22 33 18 2 Fast Attach . | . . . . . Attach 26 | 6 7 7 6 . Detach . | . . . . . Swap 48 | 2 13 16 14 3 Drop 49 | . 11 25 11 2 Fire 138 | . 35 46 48 9 Melee . | . . . . . Ram . | . . . . . Kick 14 | . . . 14 . Crush 1 | . 1 . . . Escape Stasis . | . . . . . Rewire 6 | . . . 3 3 Trap . | . . . . . Miscellaneous 15 | . . . 15 . Route ------- -11/Scrapyard -10/Materials (discovered 5 exits: *Mat x3 / *Min x2) -9/Materials (discovered 6 exits: *Mat x2 / *Min x2 / *Sto x2) -9/Storage (discovered 2 exits: *Mat / *Rec) -9/Recycling History --------- Turn | Location | Event 3 | -11/Scrapyard | Discovered new exit (range 15) 90 | -11/Scrapyard | Entered Materials 145 | -10/Materials | Discovered new exit (range 16) 304 | -10/Materials | Build established: Mutant 394 | -10/Materials | Discovered new exit (range 9) 962 | -10/Materials | Discovered new exit (range 6) 1065 | -10/Materials | Discovered new exit (range 16) 1290 | -10/Materials | Discovered new exit (range 5) 1383 | -10/Materials | Identified exit to Materials 1477 | -10/Materials | Identified exit to Mines 1637 | -10/Materials | Entered another Materials area 1637 | -9/Materials | Evolved 2 slots: Propulsion x1, Utility x1 1839 | -9/Materials | Repaired Aluminum Leg 2053 | -9/Materials | Discovered new exit (range 8) 2355 | -9/Materials | Discovered new exit (range 16) 2430 | -9/Materials | Identified exit to Mines 2682 | -9/Materials | Identified exit to Storage 2775 | -9/Materials | Discovered new exit (range 4) 2777 | -9/Materials | Identified exit to Materials 2917 | -9/Materials | Discovered exit to Materials (range 12) 2985 | -9/Materials | Discovered exit to Storage (range 6) 3078 | -9/Materials | Discovered exit to Mines (range 5) 3144 | -9/Materials | Entered Storage 3312 | -9/Storage | Repaired Aluminum Leg 3340 | -9/Storage | Repaired Aluminum Leg 3374 | -9/Storage | Repaired Imp. Aluminum Leg 3569 | -9/Storage | Core integrity fell below 50% 3801 | -9/Storage | Repaired Flak Cannon 3835 | -9/Storage | Repaired Imp. Aluminum Leg 3879 | -9/Storage | Met 01-MTF 3909 | -9/Storage | Discovered exit to Materials (range 6) 3997 | -9/Storage | Discovered new exit (range 9) 4386 | -9/Storage | Assisted by bots powering up and referring to "LRC-V3" 4679 | -9/Storage | Build established: Commander-Mutant 4686 | -9/Storage | Lost 3 allies 4891 | -9/Storage | Lost 3 allies 5154 | -9/Storage | Build established: Mutant 6016 | -9/Storage | Identified exit to Recycling 6017 | -9/Storage | Entered Recycling 6017 | -9/Recycling | Accompanied by 2 allies (01-MTF) 6022 | -9/Recycling | 01-MTF left 6269 | -9/Recycling | Core integrity fell below 20% 6272 | -9/Recycling | Destroyed by P-60 Hacker with Shock Rifle Last Messages --------------- 06250_ P-60 Hacker springs to life. 06254_ P-60 Hacker resets L-31 Rogue, system corruption cleaned. 06255_ I-25 Savior destroyed. 06255_ S-10 Pest destroyed. 06255_ R-06 Scavenger collects Terrain Scan Processor. 06258_ P-60 Hacker destroyed. 06258_ Destroyed Ion Engine. 06258_ U-05 Engineer destroyed. 06259_ Aluminum Leg destroyed. 06260_ R-06 Scavenger collects Welding Torch. 06262_ Rocket Launcher destroyed. 06264_ R-06 Scavenger collects Lrg. Battery. 06266_ FL6MU:WW8I%ZRHVDS81<8>HCUDBCY2D=R N8Q&V 06266_ R-06 Scavenger collects Flight Unit. 06270_ R-06 Scavenger inserts Aluminum Leg into recycling unit. 06271_ Imp. Aluminum Leg severed. 06271_ Hvy. Assault Rifle destroyed. Map ----- +----------------------------------------------------+ | | | | | | | | | | | | | | | | | | | | | | | | | | | | | | | | | | | | | ??????????????????????????????????????? | | ???????#####?????????#####????????????? | | ???????#"""#?????????#"""#????????????? | | ????####"Y"###########"Y"###########??? | | ????+ ###? | | ????# ""#? | | ????# Y"#? | | ????+ @l r""#? | | ????# p ##? | | ????## ######### ############ p ##?? | | ?????# #???????#+#??????????# % #??? | | ????## ##??????????????????? = =#?? | | ##### #??????????????????# % r#?? | | #??????????????????#=% %!#?? | | ##### #??????????????????# % ]#?? | | ????#####??????????????????/ * #?? | | ???????????????????????????# ?? | | ???????????????????????????# % #? | | ##?????????????????????????# ! *%##? | | ###????????????????????????# ?? | | # #????????????????????????#### ##? | | #???????????????????????????? ##?? | | ###????????????????????????????###????? | | #?????????????????????????????????????? | | #?????????????????????????????????????? | | #?????????????????????????????????????? | | #?????????????????????????????????????? | | #?????????????????????????????????????? | | #?????????????????????????????????????? | | ??????????????????????????????????????? | | ??????????????????????????????????????? | | ??????????????????????????????????????? | +----------------------------------------------------+ Best States ------------- Heat Dissipation 50 Energy Generation 12 Energy Capacity 265 Matter Stores 400 Matter Capacity 400 Sight Range 16 Terrain Scan Range 14 Terrain Scan Density 85 Evasion (%) 55 Targeting Accuracy 6 Recoil Reduction 2 Item Schematics ----------------- Grenade Launcher | -9/Materials | Scanalyzed Signal Interpreter | -9/Materials | Scanalyzed Imp. Targeting Computer | -9/Materials | Scanalyzed Med. Armor Plating | -9/Materials | Scanalyzed ECM Suite | -9/Materials | Scanalyzed Robot Schematics ------------------ None Fabricated ------------ Nothing Alien Tech Used ----------------- None Achievements -------------- Everything Is Under Control More Dakka Please Remodeling The More The Merrier \\IAMDERELICT Challenges ------------ None Game ------ Seed RecyclingCryofiberBox Manual? 0 Play Time 01:31:11 Cumulative 4.4 hours Start 2024.04.06 @ 20:17:58 End 2024.04.06 @ 21:59:54 Sessions 1 Manual Loads 0 Difficulty Rogue Special Mode None Game No. 9 Rogue 9 Adventurer 0 Explorer 0 Win Type - Total 0 Types 0/0/0/0/0/0/0/0/0 Lore% 2 Gallery% 8 Achievement% 9 Wizard Run 0 Options --------- Layout 1 ASCII 0 Keyboard 0 Movement Mouse Keybinds 0 Fullscreen 1 Font 24/Smallcaps Map View 50x35 Zoom Use 0% Tactical HUD 1 Map Filters NONE Filters NONE Steam 1 RUN: 9bda811b-6c4e-411b-8ef1-909b94e06418